fUSD/lending_fUSD_20240625
["ID","MTS","AMOUNT","RATE_DAILY","PERIOD"]
[330350383,1719292239143,-182.0,0.0002235,4]
[330350384,1719292239152,-457.91454422,0.00022526,2]
[330350385,1719292239162,-1125.36916571,0.0002253,2]
[330350386,1719292239174,-170.07466889,0.00022573,2]
[330350387,1719292239184,-150.0,0.00022607,2]
[330350388,1719292239194,-1206.6789,0.00022638,2]
[330350389,1719292239203,-2537.27,0.00022676,2]
[330350390,1719292239213,-24519.4551,0.00022676,2]
[330350391,1719292239223,-8179.4022,0.00022676,2]
[330350392,1719292239232,-150.0,0.00022725,2]
[330350393,1719292239242,-2500.0,0.00022739,2]
[330350394,1719292239252,-2500.0,0.00022739,2]
[330350395,1719292239262,-2500.0,0.00022739,2]
[330350396,1719292239272,-2500.0,0.00022739,2]
[330350397,1719292239282,-2500.0,0.00022739,2]
[330350398,1719292239292,-2500.0,0.00022739,2]
[330350399,1719292239302,-2500.0,0.00022739,2]
[330350400,1719292239311,-2500.0,0.00022739,2]
[330350401,1719292239321,-2500.0,0.00022739,2]
[330350402,1719292239330,-2500.0,0.00022739,2]
[330350403,1719292239340,-2500.0,0.00022739,2]
[330350404,1719292239350,-2500.0,0.00022739,2]
[330350405,1719292239359,-2500.0,0.00022739,2]
[330350406,1719292239370,-2500.0,0.00022739,2]
[330350407,1719292239379,-2500.0,0.00022739,2]
[330350408,1719292239389,-1932.0,0.00022739,2]
[330350409,1719292239399,-6335.61192678,0.00022772,2]
[330350410,1719292239409,-6335.61192678,0.00022776,2]
[330350411,1719292239422,-405.21204696,0.00022777,2]
[330350412,1719292239431,-31462.43887344,0.00022777,2]
[330350413,1719292239441,-3618.97838296,0.00022779,2]
[330350414,1719292239451,-157.11,0.00022779,2]
[330350415,1719292239461,-6335.61192678,0.0002278,2]
[330350416,1719292239471,-3107.31885347,0.00022788,2]
[330350417,1719292239482,-31462.43887344,0.00022789,2]
[330350418,1719292239491,-405.21204691,0.00022793,2]
[330350419,1719292239502,-500.0,0.00022802,2]
[330350420,1719292239511,-474.28975858,0.00022803,2]
[330350421,1719292239521,-500.0,0.00022804,2]
[330350422,1719292239531,-200.0,0.00022804,2]
[330350423,1719292239540,-500.0,0.00022804,2]
[330350424,1719292239550,-200.0,0.00022804,2]
[330350425,1719292239560,-405.21204691,0.00022809,2]
[330350426,1719292239569,-1199.33821061,0.00022813,2]
[330350427,1719292239579,-6335.61192678,0.00022818,2]
[330350428,1719292239589,-1199.33821061,0.00022818,2]
[330350429,1719292239599,-1199.33821061,0.00022818,2]
[330350430,1719292239609,-405.21204691,0.00022825,2]
[330350431,1719292239618,-6335.61192678,0.00022826,2]
[330350432,1719292239628,-31462.43887344,0.00022829,2]
[330350433,1719292239638,-405.21204691,0.00022842,2]
[330350434,1719292239648,-1199.33821061,0.00022848,2]
[330350435,1719292239657,-405.21204691,0.00022858,2]
[330350436,1719292239668,-543.14708226,0.00022865,2]
[330350437,1719292239678,-31462.43887344,0.00022866,2]
[330350438,1719292239688,-405.21204691,0.00022874,2]
[330350439,1719292239698,-365.347803,0.00022876,2]
[330350440,1719292239708,-31462.43887344,0.00022877,2]
[330350441,1719292239719,-1199.33821061,0.00022886,2]
[330350442,1719292239729,-31462.43887344,0.00022888,2]
[330350443,1719292239739,-19453.77940474,0.0002289,2]
[330350445,1719292239749,-405.21204691,0.0002289,2]
[330350446,1719292239758,-170.07466889,0.0002289,2]
[330350447,1719292239768,-170.07466889,0.0002289,2]
[330350448,1719292239777,-170.07466889,0.0002289,2]
[330350449,1719292239786,-297.63067055,0.0002289,2]
[330350450,1719292239796,-631.02916004,0.0002289,2]
[330350451,1719292239806,-160.20384157,0.0002289,2]
[330350452,1719292239816,-157.83256944,0.0002289,2]
[330350453,1719292239826,-336.44234257,0.0002289,2]
[330350454,1719292239836,-156.14451449,0.00022897,2]
[330350455,1719292239846,-6335.61192678,0.00022898,2]
[330350456,1719292239856,-1199.33821061,0.000229,2]
[330350457,1719292239866,-489.0,0.000229,5]
[330350458,1719292239876,-210.58344956,0.0002298,2]
[330350459,1719292239885,-210.58344956,0.0002298,2]
[330350460,1719292239895,-2219.1085214,0.00022984,2]
[330350461,1719292239905,-4244.4942158,0.00022984,2]
[330350462,1719292239914,-153.45175377,0.00022985,2]
[330350463,1719292239926,-2065.42627545,0.00022985,2]
[330350464,1719292239937,-536.46036163,0.00022985,2]
[330350465,1719292239951,-157.47341301,0.0002299,5]
[330350466,1719292239961,-200726.45227163,0.0002299,5]
[330350467,1719292241050,-1340.45084067,0.0001831,2]
[330350468,1719292241060,-1119.29335933,0.0002299,7]
[330350469,1719292241076,-413.00485192,0.0002299,7]
[330350495,1719292242949,-766.34393118,0.00021,4]
[330350497,1719292242958,-944.25093946,0.00022989,2]
[330350499,1719292242967,-12877.6137939,0.0002299,7]
[330350501,1719292242978,-524655.0620013,0.0002299,5]
[330350519,1719292243302,-329.70014336,0.0002299,5]
[330350522,1719292246474,-2161.43776593,0.00019177,2]
[330350523,1719292246487,-861.91583298,0.00019177,2]
[330350524,1719292246501,-248.59,0.0002298,3]
[330350525,1719292246515,-6363.65315546,0.0002299,5]
[330350526,1719292246902,-364.40324563,0.0002299,5]
[330350527,1719292246915,-472.71795219,0.0002299,5]
[330350528,1719293250974,-246200.9223,0.00011199,2]
[330350529,1719293323785,-300.0,0.00011198,2]
[330350530,1719293323809,-69646.5551,0.00011199,2]
[330350531,1719293367098,-333.84,0.00010959,2]
[330350532,1719293367116,-278.2,0.00010959,2]
[330350533,1719293367135,-231.83,0.00010959,2]
[330350534,1719293367153,-193.2,0.00010959,2]
[330350535,1719293367174,-6646.97966371,0.00011199,2]
[330350538,1719293433057,-805.0,0.00010959,2]
[330350539,1719293433067,-161.0,0.00010959,2]
[330350540,1719293433077,-150.0,0.00011198,2]
[330350541,1719293433088,-225189.53941913,0.00011199,2]
[330350542,1719293433097,-19809.55605681,0.00011199,2]
[330350543,1719293433106,-4452.72639536,0.00012205,2]
[330350544,1719293433115,-1806.36883423,0.00012606,2]
[330350545,1719293433125,-259.63917082,0.00012606,2]
[330350546,1719293433134,-211.0103845,0.00012609,2]
[330350547,1719293433143,-155.50465982,0.00012765,2]
[330350548,1719293433153,-211.54457694,0.00012785,2]
[330350549,1719293433163,-429.49684291,0.000129,2]
[330350550,1719293433172,-158.04055819,0.00013009,2]
[330350551,1719293433182,-272.54921728,0.00013134,2]
[330350552,1719293433191,-155.09580587,0.00013182,2]
[330350553,1719293433200,-292.9447,0.00013183,2]
[330350554,1719293433210,-1743.48,0.00013244,2]
[330350555,1719293433220,-290.28,0.00013263,2]
[330350556,1719293433230,-5973.5,0.00013346,2]
[330350557,1719293433240,-1602.1842,0.00013346,2]
[330350558,1719293433250,-439.00126915,0.00013482,2]
[330350559,1719293433259,-199.0702842,0.00013482,2]
[330350561,1719293433269,-476.10463339,0.00013497,2]
[330350563,1719293433279,-155.16151155,0.00013497,2]
[330350565,1719293433288,-155.0,0.00013497,2]
[330350567,1719293433298,-155.0,0.00013497,2]
[330350568,1719293433307,-816.26050152,0.00013497,2]
[330350570,1719293433319,-139.71276928,0.00013497,2]
[330350571,1719293433329,-1136.82064161,0.00013497,2]
[330350572,1719293433341,-167.65226352,0.00013497,2]
[330350573,1719293433351,-526.41386275,0.00013497,2]
[330350574,1719293433366,-1498.12355119,0.00013503,2]
[330350575,1719293433375,-189.87691165,0.00013503,2]
[330350576,1719293433387,-205.34413434,0.00013503,2]
[330350577,1719293433398,-284.19510809,0.00013503,2]
[330350578,1719293433408,-415.42608174,0.00013574,2]
[330350579,1719293433420,-357.46371413,0.00013574,2]
[330350580,1719293434162,-854.16488114,0.00013574,2]
[330350581,1719293434174,-4.30215965,0.00013574,2]
[330350582,1719293434184,-155.12226173,0.00013574,2]
[330350583,1719293434194,-164.37134736,0.00013799,2]
[330350584,1719293434203,-140.67909797,0.00013799,2]
[330350585,1719293434215,-23.69224933,0.00013799,2]
[330350586,1719293434224,-499.99,0.00013799,2]
[330350587,1719293434234,-429.49684287,0.00013822,2]
[330350588,1719293434244,-164.3713473,0.00014726,2]
[330350589,1719293434254,-14.83678575,0.00015,2]
[330350590,1719293434266,-2186.65209013,0.00015,2]
[330350591,1719293434279,-2798.51112412,0.00015,2]
[330350592,1719293434288,-429.49684287,0.00015334,2]
[330350593,1719293434298,-164.3713473,0.00015892,2]
[330350594,1719293434308,-700.34,0.00016681,2]
[330350595,1719293434318,-198.01,0.00016712,2]
[330350596,1719293434327,-429.49684287,0.00016845,2]
[330350597,1719293434338,-164.3713473,0.00017058,2]
[330350598,1719293434353,-250.0,0.0001755,2]
[330350599,1719293434363,-3270.52,0.00017616,2]
[330350600,1719293434372,-903.44851998,0.00017616,2]
[330350602,1719293438792,-0.00113301,0.00013244,2]
[330350611,1719293440615,-299.98886699,0.00013244,2]
[330350612,1719293440625,-246.13950856,0.00013482,2]
[330350613,1719293440636,-337.13080554,0.00017616,2]
[330350614,1719293441878,-111.73067448,0.00017616,2]
[330350615,1719293441889,-250.0,0.00017759,2]
[330350616,1719293441899,-126.63426864,0.00017771,2]
[330350617,1719293441982,-4791.52473631,0.00017771,2]
[330350619,1719293443434,-1240.62099505,0.00017771,2]
[330350620,1719293443444,-23900.0,0.00017872,2]
[330350621,1719293443454,-11418.81,0.00017996,2]
[330350622,1719293443463,-10000.0,0.00018118,2]
[330350623,1719293443473,-283.78,0.00018119,2]
[330350624,1719293443482,-470.92,0.00018119,2]
[330350625,1719293443492,-164.3713473,0.00018225,2]
[330350626,1719293443502,-429.49684287,0.00018356,2]
[330350627,1719293443511,-5155.46,0.00018401,2]
[330350628,1719293443522,-12747.94565031,0.000185,2]
[330350629,1719293443534,-637.0,0.000185,3]
[330350630,1719293443543,-200.0,0.00018658,2]
[330350631,1719293443552,-1000.0,0.00018685,2]
[330350632,1719293443562,-150.0,0.00018766,2]
[330350633,1719293443572,-345.54,0.00018817,2]
[330350634,1719293443582,-151.27,0.00018895,2]
[330350635,1719293443592,-700.34,0.00018945,2]
[330350636,1719293443603,-386.31,0.0001914,2]
[330350637,1719293443613,-250.0,0.00019178,2]
[330350638,1719293443624,-150.0,0.00019294,2]
[330350639,1719293443633,-168.74,0.00019339,2]
[330350640,1719293443643,-213.13,0.00019364,2]
[330350641,1719293443653,-5207.505,0.00019381,2]
[330350642,1719293443663,-5841.037,0.00019381,2]
[330350643,1719293443673,-1222.05,0.00019381,2]
[330350644,1719293443683,-2189.792,0.00019381,2]
[330350645,1719293443692,-164.3713473,0.00019391,2]
[330350646,1719293443702,-167.0,0.00019631,2]
[330350647,1719293443712,-429.49684287,0.00019867,2]
[330350648,1719293443722,-386.31,0.00020097,2]
[330350649,1719293443732,-167.0,0.00020279,2]
[330350650,1719293443742,-3270.52,0.00020356,2]
[330350651,1719293443752,-164.3713473,0.00020557,2]
[330350652,1719293443762,-150.0,0.00020664,2]
[330350653,1719293443772,-13266.3799869,0.000208,3]
[330350654,1719293443782,-3618.10363278,0.0002089,3]
[330350655,1719293443792,-167.0,0.00020927,2]
[330350656,1719293443802,-1206.03454426,0.00020941,3]
[330350657,1719293443811,-6110.94,0.00020951,2]
[330350658,1719293443821,-1250.0,0.00021,2]
[330350659,1719293443831,-202.623157,0.00021,2]
[330350660,1719293443841,-1000.0,0.0002102,2]
[330350661,1719293443851,-386.31,0.00021054,2]
[330350662,1719293443861,-700.34,0.00021209,2]
[330350666,1719293444118,-1206.03454426,0.00021232,3]
[330350667,1719293444128,-3023.35359891,0.00021251,2]
[330350668,1719293444138,-3107.87,0.00021252,2]
[330350669,1719293444147,-429.49684287,0.00021379,2]
[330350670,1719293444158,-167.0,0.00021576,2]
[330350671,1719293444168,-361.77,0.00021644,2]
[330350672,1719293444177,-342.41,0.00021644,2]
[330350673,1719293444187,-164.3713473,0.00021724,2]
[330350674,1719293444196,-1206.03454426,0.00021736,3]
[330350675,1719293444206,-1206.03454426,0.00021807,3]
[330350676,1719293444216,-474.28975858,0.00021899,2]
[330350677,1719293444226,-500.0,0.000219,7]
[330350678,1719293444235,-227.11,0.00021918,2]
[330350679,1719293444245,-166.32,0.00021918,2]
[330350680,1719293444254,-1100.0,0.00022,8]
[330350681,1719293444264,-155.14288395,0.0002201,2]
[330350682,1719293444274,-386.31,0.00022011,2]
[330350683,1719293444284,-527.74,0.00022023,2]
[330350684,1719293444294,-1600.0,0.000221,8]
[330350685,1719293444304,-2200.0,0.000222,8]
[330350686,1719293444314,-167.0,0.00022224,2]
[330350687,1719293444323,-150.0,0.00022264,2]
[330350688,1719293444333,-2700.0,0.000223,8]
[330350689,1719293444345,-500.0,0.000224,8]
[330350690,1719293444361,-630.04370297,0.00022426,2]
[330350691,1719293444371,-4445.36823103,0.00022499,2]
[330350692,1719293444380,-1024.0,0.000225,2]
[330350693,1719293444391,-500.0,0.000225,8]
[330350694,1719293444400,-2376.06489013,0.00022515,2]
[330350695,1719293444410,-3964.09852975,0.00022516,2]
[330350696,1719293444419,-1206.03454426,0.00022516,3]
[330350697,1719293444430,-1206.03454426,0.00022518,3]
[330350698,1719293444440,-228.95727211,0.00022529,2]
[330350699,1719293444449,-630.04370295,0.00022542,2]
[330350700,1719293444459,-500.0,0.000226,8]
[330350701,1719293444469,-419.83884206,0.00022608,2]
[330350702,1719293444479,-388.41253087,0.00022636,2]
[330350703,1719293444490,-630.04370295,0.00022658,2]
[330350704,1719293444500,-500.0,0.000227,8]
[330350705,1719293444510,-397.0,0.0002276,2]
[330350706,1719293444520,-630.04370295,0.00022774,2]
[330350707,1719293444533,-7114.15230236,0.0002279,2]
[330350708,1719293444543,-952.0,0.000228,8]
[330350709,1719293444553,-500.0,0.00022804,2]
[330350710,1719293444563,-200.0,0.00022804,2]
[330350711,1719293444573,-266.10463106,0.00022805,2]
[330350712,1719293444583,-386.77652916,0.00022829,2]
[330350713,1719293444592,-150.0,0.0002283,2]
[330350714,1719293444604,-1251.71322753,0.00022853,2]
[330350715,1719293444614,-2412.06908852,0.00022854,3]
[330350716,1719293444624,-156.40230787,0.00022869,2]
[330350717,1719293444634,-690.10215601,0.0002287,2]
[330350718,1719293444644,-167.0,0.00022872,2]
[330350719,1719293444653,-1000.0,0.00022874,2]
[330350720,1719293444663,-1000.0,0.00022874,2]
[330350721,1719293444673,-1000.0,0.00022874,2]
[330350722,1719293444683,-1000.0,0.00022874,2]
[330350723,1719293444692,-1000.0,0.00022874,2]
[330350724,1719293444702,-1000.0,0.00022874,2]
[330350725,1719293444711,-1000.0,0.00022874,2]
[330350726,1719293444720,-1000.0,0.00022874,2]
[330350727,1719293444730,-1000.0,0.00022874,2]
[330350728,1719293444739,-1000.0,0.00022874,2]
[330350729,1719293444749,-1000.0,0.00022874,2]
[330350730,1719293444758,-1000.0,0.00022874,2]
[330350731,1719293444767,-1000.0,0.00022874,2]
[330350732,1719293444777,-1000.0,0.00022874,2]
[330350733,1719293444787,-1000.0,0.00022874,2]
[330350734,1719293444797,-1000.0,0.00022874,2]
[330350735,1719293444806,-1000.0,0.00022874,2]
[330350736,1719293444815,-1000.0,0.00022874,2]
[330350737,1719293444827,-1000.0,0.00022874,2]
[330350738,1719293444836,-1000.0,0.00022874,2]
[330350739,1719293444847,-1000.0,0.00022874,2]
[330350740,1719293444857,-1000.0,0.00022874,2]
[330350741,1719293444866,-1000.0,0.00022874,2]
[330350742,1719293444877,-1000.0,0.00022874,2]
[330350743,1719293444887,-1000.0,0.00022874,2]
[330350744,1719293444896,-346.8937,0.00022874,2]
[330350745,1719293444906,-500.0,0.00022874,2]
[330350746,1719293444917,-500.0,0.00022874,2]
[330350747,1719293444928,-500.0,0.00022874,2]
[330350748,1719293444938,-500.0,0.00022874,2]
[330350749,1719293444948,-532.309,0.00022874,2]
[330350750,1719293444958,-219.9,0.00022877,2]
[330350751,1719293444968,-163.36231764,0.0002289,2]
[330350752,1719293444979,-27636.84354282,0.0002289,2]
[330350753,1719293444988,-164.3713473,0.0002289,2]
[330350754,1719293444998,-630.04370295,0.0002289,2]
[330350755,1719293445008,-377.60465195,0.0002289,2]
[330350756,1719293445017,-429.49684287,0.0002289,2]
[330350757,1719293445027,-1000.0,0.0002289,2]
[330350758,1719293445038,-1206.9525,0.0002289,2]
[330350759,1719293445048,-10000.0,0.0002289,2]
[330350760,1719293445059,-1743.58035965,0.0002289,3]
[330350761,1719293445069,-1743.58035965,0.0002289,3]
[330350762,1719293445079,-386.31,0.00022968,2]
[330350763,1719293445089,-180.39621802,0.0002297,3]
[330350764,1719293445099,-167.90140729,0.00022977,2]
[330350765,1719293445109,-155.15815196,0.00022977,2]
[330350766,1719293445118,-180.39621802,0.00022978,3]
[330350767,1719293445127,-721.58487208,0.0002298,3]
[330350768,1719293445137,-1376.9508503,0.00022988,2]
[330350769,1719293445147,-2065.42627545,0.00022988,2]
[330350770,1719293445157,-2260.69,0.00022989,2]
[330350771,1719293445167,-6320.91196156,0.0002299,2]
[330350772,1719293445177,-13643.76289953,0.0002299,7]
[330350773,1719293445187,-264400.98735849,0.0002299,5]
[330350779,1719293446949,-1144.6138646,0.00018118,2]
[330350781,1719293550679,150.5,0.0002298,30]
[330350782,1719293551015,225.5,0.0002297,30]
[330350783,1719293629637,4120.79616707,0.00022,30]
[330350784,1719293670508,150.5,0.0001399,30]
[330350785,1719293670831,150.5,0.0001398,30]
[330350786,1719293670999,150.5,0.0001399,30]
[330350787,1719293671578,150.5,0.0001398,30]
[330350788,1719293672047,150.5,0.0001397,30]
[330350789,1719293672749,150.5,0.0002069,30]
[330350790,1719293673135,206.0,0.0002068,30]
[330350791,1719293713468,187.08,0.00024843,120]
[330350793,1719294521262,-783.01,0.00010681,2]
[330350794,1719294521284,-3507.74596417,0.000112,2]
[330350795,1719294543103,-950.133826,0.00012222,2]
[330350796,1719294543125,-151.27,0.00012249,2]
[330350797,1719294543145,-1195.29,0.00012285,2]
[330350798,1719294543167,-528.27,0.00012342,2]
[330350799,1719294543188,-2055.84,0.00012368,2]
[330350800,1719294543210,-4123.2,0.00012401,2]
[330350801,1719294543236,-250.0,0.00012415,2]
[330350802,1719294543257,-250.0,0.00012501,2]
[330350803,1719294543281,-3981.54,0.00012525,2]
[330350804,1719294543302,-150.99,0.00012525,2]
[330350805,1719294543326,-1690.84,0.00012525,2]
[330350806,1719294555814,381.87020983,0.00012149,2]
[330350807,1719294620244,164.49,9.946e-05,2]
[330350822,1719294632561,-378.73,0.00012149,2]
[330350823,1719294632573,-361.75433876,0.00012149,2]
[330350824,1719294632586,-817.26918962,0.00012149,2]
[330350825,1719294632598,-2333.50701761,0.00012149,2]
[330350826,1719294632609,-2207.40403079,0.00012149,2]
[330350827,1719294632621,-1325.14524,0.00012149,2]
[330350828,1719294632633,-289.3455407,0.00012149,2]
[330350829,1719294632646,-3499.02376926,0.00012149,2]
[330350830,1719294632658,-5849.06297211,0.00012149,2]
[330350831,1719294632670,-2748.31395796,0.00012149,2]
[330350832,1719294632679,-2565.68614204,0.00012432,2]
[330350833,1719294632691,-2589.77385796,0.00012432,2]
[330350834,1719294632701,-159.85756079,0.00012555,2]
[330350835,1719294632712,-200.0,0.00012563,2]
[330350836,1719294632728,-2282.37,0.00012615,2]
[330350837,1719294632746,-1671.82,0.00012655,2]
[330350838,1719294632756,-191.36,0.00012655,2]
[330350839,1719294632767,-499.99,0.00012655,2]
[330350840,1719294632776,-158.46,0.00012801,2]
[330350841,1719294632785,-150.0,0.00012904,2]
[330350842,1719294632794,-783.01,0.00012945,2]
[330350843,1719294632805,-150.0,0.00012993,2]
[330350844,1719294632815,-474.28975858,0.0001305,2]
[330350845,1719294632826,-284.27,0.00013051,2]
[330350846,1719294632838,-159.21859947,0.00013225,2]
[330350847,1719294632847,-955.9732708,0.00013225,2]
[330350848,1719294632857,-321.88,0.00013226,2]
[330350849,1719294632867,-213.14,0.00013226,2]
[330350850,1719294632877,-266.10463106,0.00013234,2]
[330350851,1719294632886,-46421.9,0.00013238,2]
[330350852,1719294632897,-266.24329784,0.00013244,2]
[330350853,1719294632907,-412.61839352,0.00013273,2]
[330350854,1719294632917,-607.52,0.00013274,2]
[330350855,1719294632928,-155.22620629,0.00013289,2]
[330350856,1719294632938,-470.92,0.00013297,2]
[330350857,1719294632948,-155.30318338,0.00013313,2]
[330350858,1719294632958,-397.0,0.00013314,2]
[330350859,1719294632967,-184.4312977,0.00013436,2]
[330350860,1719294632978,-70553.98749274,0.00013446,2]
[330350861,1719294633008,-278.60878409,0.00013446,2]
[330350862,1719294633020,-1115.8023317,0.00013446,2]
[330350863,1719294633071,-603.38328281,0.00013446,2]
[330350864,1719294634793,-282.22174821,0.00013446,2]
[330350865,1719294634809,-5761.97270198,0.00013446,2]
[330350866,1719294634820,-2628.90713172,0.00013446,2]
[330350868,1719294638440,-214.74842147,0.000134,2]
[330350869,1719294638450,-96.93400012,0.00013446,2]
[330350870,1719294638461,-1777.0,0.00013446,2]
[330350871,1719294638473,-3191.41997605,0.00013446,2]
[330350872,1719294638484,-384.2290936,0.00013446,2]
[330350873,1719294638579,-434.55000021,0.00013446,2]
[330350874,1719294638720,-12610.62284288,0.00013446,2]
[330350875,1719294638735,-2726.77650109,0.00013446,2]
[330350876,1719294638747,-159563.58443745,0.00013446,2]
[330350877,1719294638759,-255.53745705,0.00013446,2]
[330350878,1719294638771,-2674.86820285,0.00013446,2]
[330350883,1719294638898,-4207.32988912,0.00013446,2]
[330350885,1719294638910,-2109.83826179,0.00013446,2]
[330350887,1719294638922,-657.76259654,0.00013446,2]
[330350921,1719294640679,-474.28975858,0.00013034,2]
[330350922,1719294640689,-630.04370297,0.000135,2]
[330350923,1719294640699,-311.50355214,0.000136,4]
[330350941,1719294643551,-538002.64967079,0.00013345,2]
[330350942,1719294643679,-672.60416766,0.00013345,2]
[330350943,1719294643833,-328.04999985,0.00013345,2]
[330350944,1719294643857,-1712.647551,0.00013345,2]
[330350945,1719294644024,-477.85745099,0.00013345,2]
[330350954,1719294647005,-0.08586974,0.00013345,2]
[330350955,1719294751874,890.06250225,0.00011917,2]
[330350956,1719294761673,794.71,0.00010763,2]
[330350957,1719294771632,18150.73749775,0.00011872,2]
[330350958,1719294950420,-547683.99648284,0.00011199,2]
[330350959,1719294950442,-791.62967687,0.00011772,2]
[330350960,1719294950464,-944.25093946,0.00011799,2]
[330350961,1719294950487,-955.9732708,0.00011816,2]
[330350962,1719294950509,-19809.55605681,0.00011872,2]
[330350963,1719294950530,-266.10463106,0.00011872,2]
[330350964,1719294950552,-430.89547468,0.00011872,2]
[330350965,1719294950572,-244.88884211,0.00011917,2]
[330350966,1719294950593,-2753.0624,0.00012555,2]
[330350967,1719294950617,-250.0,0.00012646,2]
[330350968,1719294950642,-4095.42,0.00012648,2]
[330350969,1719294950663,-1159.94,0.00012665,2]
[330350970,1719294950685,-250.0,0.00012665,2]
[330350971,1719294950708,-1000.0,0.00012685,2]
[330350972,1719294950730,-7197.8353,0.00012685,2]
[330350973,1719294950769,-2500.0,0.00012685,2]
[330350974,1719294950812,-794.71,0.00013027,2]
[330350975,1719294950856,-844.6469,0.00013136,2]
[330350976,1719294950895,-151.54,0.00013234,2]
[330350977,1719294950938,-151.54,0.00013275,2]
[330350978,1719294950973,-151.54,0.00013316,2]
[330350979,1719294951012,-151.54,0.00013356,2]
[330350980,1719294951053,-151.54,0.00013397,2]
[330350981,1719294951090,-23900.0,0.00013418,2]
[330350982,1719294951126,-151.54,0.00013437,2]
[330350983,1719294951161,-678.46,0.00013451,2]
[330350984,1719294951203,-151.54,0.00013478,2]
[330350985,1719294951238,-151.54,0.00013518,2]
[330350986,1719294951273,-150.0,0.00013521,2]
[330350987,1719294951308,-151.54,0.00013559,2]
[330350988,1719294951344,-151.54,0.000136,2]
[330350989,1719294951382,-188.49644786,0.000136,4]
[330350990,1719294951418,-630.04370295,0.00013623,2]
[330350991,1719294951455,-151.54,0.0001364,2]
[330350992,1719294951490,-151.54,0.00013681,2]
[330350993,1719294951523,-434.95,0.00013699,2]
[330350994,1719294951560,-424.1,0.00013699,2]
[330350995,1719294951628,-1100.0,0.000137,5]
[330350996,1719294951679,-151.54,0.00013721,2]
[330350997,1719294951725,-1000.0,0.0001374,2]
[330350998,1719294951765,-630.04370295,0.00013745,2]
[330350999,1719294951807,-151.54,0.00013762,2]
[330351000,1719294951848,-244.30100703,0.00013799,2]
[330351001,1719294951885,-1600.0,0.000138,5]
[330351002,1719294951923,-151.54,0.00013802,2]
[330351003,1719294951961,-151.54,0.00013843,2]
[330351004,1719294951998,-630.04370295,0.00013868,2]
[330351005,1719294952035,-151.54,0.00013884,2]
[330351006,1719294952073,-7189.7871,0.000139,2]
[330351007,1719294952108,-7128.9215,0.000139,2]
[330351008,1719294952143,-353.5,0.000139,2]
[330351009,1719294952193,-3047.31,0.000139,2]
[330351010,1719294952247,-2200.0,0.000139,5]
[330351011,1719294952298,-151.54,0.00013924,2]
[330351012,1719294952341,-2000.58716264,0.00013934,2]
[330351013,1719294952382,-630.04370295,0.0001399,2]
[330351014,1719294952422,-184.4312977,0.0001399,2]
[330351015,1719294952462,-169.19703287,0.0001399,2]
[330351016,1719294952506,-1900785.15366547,0.00014,2]
[330351017,1719295110345,288.0,0.00016959,30]
[330351019,1719295586156,-507.22,0.00010959,2]
[330351020,1719295586178,-422.69,0.00010959,2]
[330351021,1719295586200,-352.24,0.00010959,2]
[330351022,1719295586221,-1215.0,0.00011798,2]
[330351023,1719295586244,-300.0,0.00011798,2]
[330351024,1719295586266,-220.0,0.00011798,2]
[330351025,1719295586289,-150.0,0.00011798,2]
[330351026,1719295586310,-300.0,0.00011798,2]
[330351027,1719295586331,-15099.09378538,0.00011799,2]
[330351028,1719295586353,-900.61,0.00011899,2]
[330351029,1719295586966,533.14621462,0.00011739,2]
[330351030,1719295651054,-293.53,0.00010959,2]
[330351031,1719295651081,-244.61,0.00010959,2]
[330351032,1719295651106,-203.84,0.00010959,2]
[330351033,1719295651128,-169.87,0.00010959,2]
[330351034,1719295651152,-849.37,0.00010959,2]
[330351035,1719295651175,-104.76966338,0.00011739,2]
[330351036,1719295651198,-546.90818749,0.00011739,2]
[330351037,1719295651220,-17587.10214913,0.00011739,2]